[Event "Late-Titled-Tuesday-Blitz-March-26-2024"]
[Site "Chess.com"]
[Date "2024.03.26"]
[Round "1"]
[White "blank0923"]
[Black "tarno17"]
[Result "0-1"]
[WhiteElo "2577"]
[BlackElo "2209"]
[TimeControl "180+1"]
[EndTime "14:07:32 PDT"]
[Termination "tarno17 won on time"]

1. Nf3 {[%clk 0:02:58.5]} 1... d5 {[%clk 0:02:58.6]} 2. g3 {[%clk 0:02:59.4]}
2... Nf6 {[%clk 0:02:53.2]} 3. Bg2 {[%clk 0:03:00.3]} 3... e6 {[%clk 0:02:52.2]}
4. O-O {[%clk 0:03:01.2]} 4... Be7 {[%clk 0:02:50.9]} 5. c4 {[%clk 0:02:10.4]}
5... O-O {[%clk 0:02:42.2]} 6. b3 {[%clk 0:02:05.3]} 6... d4 {[%clk 0:02:21.3]}
7. e3 {[%clk 0:02:05.1]} 7... c5 {[%clk 0:02:21.3]} 8. exd4 {[%clk 0:01:57.2]}
8... cxd4 {[%clk 0:02:20.6]} 9. Re1 {[%clk 0:01:58.1]} 9... Nc6 {[%clk
0:02:18.7]} 10. d3 {[%clk 0:01:56.6]} 10... h6 {[%clk 0:01:27.2]} 11. Na3 {[%clk
0:01:48.9]} 11... Bb4 {[%clk 0:01:16.4]} 12. Re2 {[%clk 0:01:46.9]} 12... Re8
{[%clk 0:01:08]} 13. Nc2 {[%clk 0:01:46.9]} 13... Bc3 {[%clk 0:01:07.4]} 14. Rb1
{[%clk 0:01:47.6]} 14... e5 {[%clk 0:01:06]} 15. Bd2 {[%clk 0:01:44.3]} 15...
Bf5 {[%clk 0:00:50.4]} 16. Nfe1 {[%clk 0:01:14.1]} 16... Qa5 {[%clk 0:00:42]}
17. a3 {[%clk 0:01:02.6]} 17... Rad8 {[%clk 0:00:21.3]} 18. h3 {[%clk
0:00:32.4]} 18... e4 {[%clk 0:00:13.8]} 19. Bxc3 {[%clk 0:00:31.8]} 19... Qxc3
{[%clk 0:00:13.4]} 20. dxe4 {[%clk 0:00:14.9]} 20... Nxe4 {[%clk 0:00:13.8]} 21.
Nd3 {[%clk 0:00:04]} 21... Nxg3 {[%clk 0:00:11.9]} 22. fxg3 {[%clk 0:00:04.9]}
22... Bxd3 {[%clk 0:00:11.8]} 23. Rd2 {[%clk 0:00:05.5]} 23... Bxc2 {[%clk
0:00:10.7]} 24. Qxc2 {[%clk 0:00:06.4]} 24... Qe3+ {[%clk 0:00:10.2]} 25. Kh2
{[%clk 0:00:06.5]} 25... d3 {[%clk 0:00:10]} 26. Qc3 {[%clk 0:00:05.9]} 26...
Ne5 {[%clk 0:00:09.3]} 27. Rbd1 {[%clk 0:00:03.4]} 27... Qg5 {[%clk 0:00:07.8]}
28. h4 {[%clk 0:00:01.7]} 28... Ng4+ {[%clk 0:00:07.3]} 29. Kh3 {[%clk
0:00:01.6]} 29... Qf5 {[%clk 0:00:06.5]} 30. Rf1 {[%clk 0:00:02.2]} 30... Nf2+
{[%clk 0:00:06.6]} 31. Kh2 {[%clk 0:00:02.9]} 31... Ng4+ {[%clk 0:00:06.6]} 32.
Kh1 {[%clk 0:00:03.6]} 32... Qe6 {[%clk 0:00:05.5]} 33. Rxd3 {[%clk 0:00:02.6]}
33... Rxd3 {[%clk 0:00:05]} 34. Qxd3 {[%clk 0:00:03.5]} 34... Ne3 {[%clk
0:00:05.7]} 35. Re1 {[%clk 0:00:03.2]} 35... Qb6 {[%clk 0:00:04.5]} 36. b4
{[%clk 0:00:02.1]} 36... Qe6 {[%clk 0:00:03.7]} 37. Bd5 {[%clk 0:00:01.8]} 37...
Qe5 {[%clk 0:00:03.5]} 38. Bg2 {[%clk 0:00:01.3]} 38... Qxg3 {[%clk 0:00:03.8]}
39. Re2 {[%clk 0:00:01.7]} 39... Re6 {[%clk 0:00:02.7]} 0-1

[Event "Late-Titled-Tuesday-Blitz-March-26-2024"]
[Site "Chess.com"]
[Date "2024.03.26"]
[Round "1"]
[White "Irishchessman16"]
[Black "Polish_fighter3000"]
[Result "1-0"]
[WhiteElo "2547"]
[BlackElo "3112"]
[TimeControl "180+1"]
[EndTime "14:07:34 PDT"]
[Termination "Irishchessman16 won on time"]

1. d4 {[%clk 0:02:58.9]} 1... Nf6 {[%clk 0:02:54.1]} 2. c4 {[%clk 0:02:57.9]}
2... g6 {[%clk 0:02:53.4]} 3. Nc3 {[%clk 0:02:57.1]} 3... Bg7 {[%clk 0:02:54]}
4. e4 {[%clk 0:02:57]} 4... d6 {[%clk 0:02:54.6]} 5. Be2 {[%clk 0:02:54.1]} 5...
O-O {[%clk 0:02:53.7]} 6. Nf3 {[%clk 0:02:54.1]} 6... e5 {[%clk 0:02:51.5]} 7.
d5 {[%clk 0:02:52.8]} 7... a5 {[%clk 0:02:50]} 8. Bg5 {[%clk 0:02:51.3]} 8...
Na6 {[%clk 0:02:48.5]} 9. Nd2 {[%clk 0:02:49.6]} 9... Qe8 {[%clk 0:02:37.7]} 10.
g4 {[%clk 0:02:46.5]} 10... Nd7 {[%clk 0:02:33.9]} 11. h4 {[%clk 0:02:45.4]}
11... f6 {[%clk 0:02:24.6]} 12. Be3 {[%clk 0:02:44]} 12... f5 {[%clk 0:02:25]}
13. gxf5 {[%clk 0:02:40]} 13... gxf5 {[%clk 0:02:25.9]} 14. exf5 {[%clk
0:02:38.6]} 14... Ndc5 {[%clk 0:02:24.4]} 15. Rg1 {[%clk 0:02:34.8]} 15... Kh8
{[%clk 0:02:18.6]} 16. Bh5 {[%clk 0:02:27.3]} 16... Qd7 {[%clk 0:02:09.4]} 17.
Bg4 {[%clk 0:02:17.7]} 17... Qf7 {[%clk 0:02:07.8]} 18. Nde4 {[%clk 0:02:14.2]}
18... Bxf5 {[%clk 0:01:57.9]} 19. Ng5 {[%clk 0:02:03.9]} 19... Qd7 {[%clk
0:01:57]} 20. Nce4 {[%clk 0:01:43.1]} 20... Nxe4 {[%clk 0:01:32.8]} 21. Nxe4
{[%clk 0:01:42.7]} 21... Nb4 {[%clk 0:01:32.6]} 22. Kd2 {[%clk 0:01:25.2]} 22...
Qf7 {[%clk 0:01:14.8]} 23. Bxf5 {[%clk 0:01:22.1]} 23... Qxf5 {[%clk 0:01:15.7]}
24. Qg4 {[%clk 0:01:21.5]} 24... Rf7 {[%clk 0:00:54]} 25. Qxf5 {[%clk
0:01:08.8]} 25... Rxf5 {[%clk 0:00:54.9]} 26. Rg4 {[%clk 0:01:03.4]} 26... c6
{[%clk 0:00:12.4]} 27. Nxd6 {[%clk 0:00:43.6]} 27... Rf6 {[%clk 0:00:05.9]} 28.
Ne4 {[%clk 0:00:42.6]} 28... Rg6 {[%clk 0:00:03.1]} 29. Rxg6 {[%clk 0:00:37.9]}
29... hxg6 {[%clk 0:00:04]} 30. d6 {[%clk 0:00:38]} 30... Na6 {[%clk 0:00:04.1]}
31. Bb6 {[%clk 0:00:33.2]} 31... Nb8 {[%clk 0:00:02.7]} 32. Nc5 {[%clk
0:00:30.7]} 32... Bf8 {[%clk 0:00:01.5]} 33. d7 {[%clk 0:00:29.8]} 33... Nxd7
{[%clk 0:00:01.4]} 34. Nxd7 {[%clk 0:00:29.9]} 34... Bd6 {[%clk 0:00:01.6]} 35.
c5 {[%clk 0:00:27.8]} 35... Be7 {[%clk 0:00:01.2]} 36. Nxe5 {[%clk 0:00:27.4]}
36... Kh7 {[%clk 0:00:01.6]} 37. Rg1 {[%clk 0:00:26.9]} 37... Rg8 {[%clk
0:00:01.3]} 38. Nf3 {[%clk 0:00:26.5]} 38... Bf6 {[%clk 0:00:01.6]} 39. Ng5+
{[%clk 0:00:26.4]} 39... Kg7 {[%clk 0:00:01.5]} 40. b3 {[%clk 0:00:25.9]} 40...
Rh8 {[%clk 0:00:02.1]} 41. Nf3 {[%clk 0:00:24.8]} 41... Rh5 {[%clk 0:00:01.9]}
42. Rg4 {[%clk 0:00:24.7]} 42... Rd5+ {[%clk 0:00:01.9]} 43. Ke2 {[%clk
0:00:24.6]} 43... Kf7 {[%clk 0:00:01.7]} 44. Ra4 {[%clk 0:00:24.4]} 44... Bc3
{[%clk 0:00:01.3]} 45. Rc4 {[%clk 0:00:23.8]} 45... Bf6 {[%clk 0:00:01.2]} 46.
Ra4 {[%clk 0:00:23.5]} 1-0

[Event "Late-Titled-Tuesday-Blitz-March-26-2024"]
[Site "Chess.com"]
[Date "2024.03.26"]
[Round "1"]
[White "elmusmolamas"]
[Black "Zkid"]
[Result "1/2-1/2"]
[WhiteElo "2494"]
[BlackElo "2903"]
[TimeControl "180+1"]
[EndTime "14:07:43 PDT"]
[Termination "Game drawn by repetition"]

1. e4 {[%clk 0:03:00.3]} 1... c5 {[%clk 0:02:59.6]} 2. Nc3 {[%clk 0:02:58.3]}
2... Nc6 {[%clk 0:02:58.2]} 3. Nge2 {[%clk 0:02:57.9]} 3... Nf6 {[%clk
0:02:57.5]} 4. d4 {[%clk 0:02:55.2]} 4... cxd4 {[%clk 0:02:58.4]} 5. Nxd4 {[%clk
0:02:55.8]} 5... d6 {[%clk 0:02:58.6]} 6. Be2 {[%clk 0:02:51.4]} 6... g6 {[%clk
0:02:57]} 7. O-O {[%clk 0:02:50.4]} 7... Bg7 {[%clk 0:02:57.2]} 8. Nb3 {[%clk
0:02:49.3]} 8... O-O {[%clk 0:02:57]} 9. Be3 {[%clk 0:02:49.9]} 9... Bd7 {[%clk
0:02:47.7]} 10. Qd2 {[%clk 0:02:44.3]} 10... Re8 {[%clk 0:02:43.9]} 11. Rad1
{[%clk 0:02:43.7]} 11... a6 {[%clk 0:02:43.7]} 12. a4 {[%clk 0:02:43.1]} 12...
Be6 {[%clk 0:02:42.6]} 13. Kh1 {[%clk 0:02:38.3]} 13... Bxb3 {[%clk 0:02:41.9]}
14. cxb3 {[%clk 0:02:39.2]} 14... Qa5 {[%clk 0:02:42.2]} 15. Bf3 {[%clk
0:02:26.5]} 15... Rac8 {[%clk 0:02:40]} 16. Rfe1 {[%clk 0:02:16.4]} 16... Nd7
{[%clk 0:02:39.9]} 17. Bg4 {[%clk 0:02:07.4]} 17... Nce5 {[%clk 0:02:35.9]} 18.
Bxd7 {[%clk 0:02:03.2]} 18... Nxd7 {[%clk 0:02:35.6]} 19. Bd4 {[%clk 0:02:03.9]}
19... Bxd4 {[%clk 0:02:30.5]} 20. Qxd4 {[%clk 0:02:04.8]} 20... Qb6 {[%clk
0:02:27.6]} 21. Qxb6 {[%clk 0:01:56.8]} 21... Nxb6 {[%clk 0:02:28.5]} 22. Rd4
{[%clk 0:01:57]} 22... Rc5 {[%clk 0:02:26.6]} 23. Rb4 {[%clk 0:01:54.7]} 23...
Rc6 {[%clk 0:02:24.2]} 24. Nd5 {[%clk 0:01:45.6]} 24... Nxd5 {[%clk 0:02:19.1]}
25. exd5 {[%clk 0:01:46.5]} 25... Rc7 {[%clk 0:02:19.7]} 26. g3 {[%clk
0:01:33.3]} 26... Rec8 {[%clk 0:02:16.5]} 27. Kg2 {[%clk 0:01:30.6]} 27... Kf8
{[%clk 0:02:12.4]} 28. Rb6 {[%clk 0:01:24.2]} 28... Rd7 {[%clk 0:02:11.4]} 29.
Re4 {[%clk 0:01:13.3]} 29... Rc5 {[%clk 0:02:05.5]} 30. Rd4 {[%clk 0:01:12.7]}
30... h5 {[%clk 0:02:00.9]} 31. h4 {[%clk 0:01:10.3]} 31... Rdc7 {[%clk
0:02:00.7]} 32. Rd2 {[%clk 0:00:42.7]} 32... f6 {[%clk 0:01:53.4]} 33. b4 {[%clk
0:00:42.6]} 33... Rc4 {[%clk 0:01:52]} 34. a5 {[%clk 0:00:42.9]} 34... Ke8
{[%clk 0:01:48.6]} 35. Rd3 {[%clk 0:00:43.4]} 35... Kd8 {[%clk 0:01:46.8]} 36.
b3 {[%clk 0:00:43.6]} 36... Rc2 {[%clk 0:01:45.5]} 37. b5 {[%clk 0:00:44.3]}
37... axb5 {[%clk 0:01:43.2]} 38. Rxb5 {[%clk 0:00:45.2]} 38... Ra2 {[%clk
0:01:36.5]} 39. b4 {[%clk 0:00:44.8]} 39... Rcc2 {[%clk 0:01:33.3]} 40. Rf3
{[%clk 0:00:45.3]} 40... Kc8 {[%clk 0:01:30.1]} 41. Kg1 {[%clk 0:00:42.2]} 41...
Rd2 {[%clk 0:01:29.6]} 42. Kg2 {[%clk 0:00:41.6]} 42... Rab2 {[%clk 0:01:29]}
43. Kg1 {[%clk 0:00:34.7]} 43... Rd4 {[%clk 0:01:22.2]} 44. Rc3+ {[%clk
0:00:35.2]} 44... Kb8 {[%clk 0:01:19.5]} 45. Re3 {[%clk 0:00:35.5]} 45... Rd1+
{[%clk 0:01:11.2]} 46. Kg2 {[%clk 0:00:34.9]} 46... Rdd2 {[%clk 0:01:11.8]} 47.
Rxe7 {[%clk 0:00:31.2]} 47... Rxf2+ {[%clk 0:01:11.7]} 48. Kg1 {[%clk
0:00:31.9]} 48... Rg2+ {[%clk 0:01:11.8]} 49. Kf1 {[%clk 0:00:24.4]} 49... Kc8
{[%clk 0:00:54.6]} 50. Rbxb7 {[%clk 0:00:22.3]} 50... Rgf2+ {[%clk 0:00:40.7]}
51. Ke1 {[%clk 0:00:22.5]} 51... Rfc2 {[%clk 0:00:40.9]} 52. Kd1 {[%clk
0:00:20.9]} 52... Rd2+ {[%clk 0:00:26.9]} 53. Ke1 {[%clk 0:00:18.7]} 53... Rdc2
{[%clk 0:00:24.9]} 54. Kd1 {[%clk 0:00:19.1]} 54... Rd2+ {[%clk 0:00:16.9]} 55.
Ke1 {[%clk 0:00:18.8]} 55... Rdc2 {[%clk 0:00:12.3]} 1/2-1/2

[Event "Late-Titled-Tuesday-Blitz-March-26-2024"]
[Site "Chess.com"]
[Date "2024.03.26"]
[Round "1"]
[White "Mops_2004"]
[Black "GMMikhailKazakov"]
[Result "1-0"]
[WhiteElo "2812"]
[BlackElo "2431"]
[TimeControl "180+1"]
[EndTime "14:07:44 PDT"]
[Termination "Mops_2004 won on time"]

1. g3 {[%clk 0:03:00.9]} 1... d5 {[%clk 0:02:57.7]} 2. Nf3 {[%clk 0:03:00.6]}
2... c6 {[%clk 0:02:58.4]} 3. Bg2 {[%clk 0:03:00.8]} 3... Nf6 {[%clk 0:02:57.5]}
4. O-O {[%clk 0:03:01.2]} 4... Bg4 {[%clk 0:02:56.4]} 5. h3 {[%clk 0:03:01.2]}
5... Bxf3 {[%clk 0:02:55.3]} 6. Bxf3 {[%clk 0:03:02.1]} 6... Nbd7 {[%clk
0:02:55.5]} 7. d3 {[%clk 0:03:02.1]} 7... e6 {[%clk 0:02:55.8]} 8. Bg2 {[%clk
0:03:01.5]} 8... Be7 {[%clk 0:02:55.7]} 9. e4 {[%clk 0:03:01.7]} 9... dxe4
{[%clk 0:02:51.9]} 10. dxe4 {[%clk 0:03:01.4]} 10... e5 {[%clk 0:02:52.5]} 11.
Nd2 {[%clk 0:03:00.6]} 11... O-O {[%clk 0:02:51.5]} 12. Qe2 {[%clk 0:03:00.6]}
12... Qc8 {[%clk 0:02:51.3]} 13. Nc4 {[%clk 0:02:49.5]} 13... Qc7 {[%clk
0:02:49.9]} 14. Bd2 {[%clk 0:02:46]} 14... Rfe8 {[%clk 0:02:48.7]} 15. a4 {[%clk
0:02:40.8]} 15... a5 {[%clk 0:02:40.9]} 16. Bc3 {[%clk 0:02:37.6]} 16... Bb4
{[%clk 0:02:36.6]} 17. Bxb4 {[%clk 0:02:31.8]} 17... axb4 {[%clk 0:02:37.5]} 18.
a5 {[%clk 0:02:31.8]} 18... Nc5 {[%clk 0:02:29.9]} 19. Qe1 {[%clk 0:02:23.7]}
19... Na6 {[%clk 0:02:25]} 20. Qe3 {[%clk 0:02:16.3]} 20... Rad8 {[%clk
0:02:20.8]} 21. c3 {[%clk 0:02:12.8]} 21... bxc3 {[%clk 0:02:05.3]} 22. bxc3
{[%clk 0:02:12.8]} 22... Nd7 {[%clk 0:02:05.3]} 23. Rfd1 {[%clk 0:01:58.8]}
23... Ndc5 {[%clk 0:02:03.5]} 24. h4 {[%clk 0:01:53.8]} 24... f6 {[%clk
0:01:58.1]} 25. Bf1 {[%clk 0:01:47.2]} 25... Rxd1 {[%clk 0:01:54.6]} 26. Rxd1
{[%clk 0:01:46.8]} 26... Rd8 {[%clk 0:01:55.5]} 27. Rb1 {[%clk 0:01:38.6]} 27...
Qf7 {[%clk 0:01:34.4]} 28. Nd2 {[%clk 0:01:18.3]} 28... Qd7 {[%clk 0:01:28.9]}
29. Nb3 {[%clk 0:01:11.6]} 29... Qd6 {[%clk 0:01:05]} 30. Be2 {[%clk 0:00:52.3]}
30... Nxb3 {[%clk 0:00:52.5]} 31. Rxb3 {[%clk 0:00:52.2]} 31... Nc5 {[%clk
0:00:52.4]} 32. Rb1 {[%clk 0:00:49.3]} 32... Qe7 {[%clk 0:00:51.5]} 33. Kg2
{[%clk 0:00:43.1]} 33... g6 {[%clk 0:00:50.3]} 34. h5 {[%clk 0:00:38]} 34... Kg7
{[%clk 0:00:24.4]} 35. h6+ {[%clk 0:00:37.7]} 35... Kf8 {[%clk 0:00:21]} 36. Bc4
{[%clk 0:00:37]} 36... Rd7 {[%clk 0:00:17.6]} 37. Rf1 {[%clk 0:00:34.4]} 37...
Ne6 {[%clk 0:00:16.9]} 38. Qb6 {[%clk 0:00:31.8]} 38... Nd8 {[%clk 0:00:14.8]}
39. Ba2 {[%clk 0:00:19.9]} 39... Qd6 {[%clk 0:00:14.6]} 40. Qb3 {[%clk
0:00:19.9]} 40... Nf7 {[%clk 0:00:12.5]} 41. Rb1 {[%clk 0:00:18.2]} 41... Qe7
{[%clk 0:00:11.9]} 42. Qc4 {[%clk 0:00:15.8]} 42... Ke8 {[%clk 0:00:11.7]} 43.
a6 {[%clk 0:00:14.1]} 43... bxa6 {[%clk 0:00:10.7]} 44. Qxc6 {[%clk 0:00:14.2]}
44... Kf8 {[%clk 0:00:10.1]} 45. Rb8+ {[%clk 0:00:11.2]} 45... Rd8 {[%clk
0:00:10]} 46. Rb7 {[%clk 0:00:11.6]} 46... Qe8 {[%clk 0:00:04.8]} 47. Rxf7+
{[%clk 0:00:11.3]} 1-0

[Event "Late-Titled-Tuesday-Blitz-March-26-2024"]
[Site "Chess.com"]
[Date "2024.03.26"]
[Round "1"]
[White "MikeSailer"]
[Black "CrushingKings"]
[Result "0-1"]
[WhiteElo "2091"]
[BlackElo "2567"]
[TimeControl "180+1"]
[EndTime "14:07:45 PDT"]
[Termination "CrushingKings won on time"]

1. d4 {[%clk 0:02:58.5]} 1... g6 {[%clk 0:02:59.2]} 2. Nf3 {[%clk 0:02:54.1]}
2... Bg7 {[%clk 0:02:59.1]} 3. Bf4 {[%clk 0:02:54.2]} 3... Nf6 {[%clk
0:02:57.6]} 4. e3 {[%clk 0:02:54.9]} 4... b6 {[%clk 0:02:57.2]} 5. Be2 {[%clk
0:02:54.8]} 5... Bb7 {[%clk 0:02:57.5]} 6. h3 {[%clk 0:02:55]} 6... O-O {[%clk
0:02:57.5]} 7. O-O {[%clk 0:02:55.4]} 7... d6 {[%clk 0:02:57.2]} 8. c4 {[%clk
0:02:55.1]} 8... Nbd7 {[%clk 0:02:57.1]} 9. Nc3 {[%clk 0:02:55.4]} 9... Ne4
{[%clk 0:02:57.1]} 10. a4 {[%clk 0:02:54.6]} 10... Nxc3 {[%clk 0:02:53.2]} 11.
bxc3 {[%clk 0:02:54.3]} 11... a5 {[%clk 0:02:54]} 12. Rb1 {[%clk 0:02:51.6]}
12... e5 {[%clk 0:02:51.9]} 13. Bh2 {[%clk 0:02:51]} 13... Qe7 {[%clk
0:02:48.4]} 14. Re1 {[%clk 0:02:46.1]} 14... f5 {[%clk 0:02:44.8]} 15. c5 {[%clk
0:02:30.9]} 15... dxc5 {[%clk 0:02:44.1]} 16. Bb5 {[%clk 0:02:28.4]} 16... e4
{[%clk 0:02:17]} 17. Nd2 {[%clk 0:01:51.8]} 17... Nf6 {[%clk 0:01:58.5]} 18. Be5
{[%clk 0:01:42.3]} 18... Rad8 {[%clk 0:01:50.2]} 19. Qb3+ {[%clk 0:01:23.1]}
19... Kh8 {[%clk 0:01:47.5]} 20. Red1 {[%clk 0:01:14.7]} 20... cxd4 {[%clk
0:01:40.5]} 21. cxd4 {[%clk 0:01:12.3]} 21... Nd5 {[%clk 0:01:40]} 22. Bxg7+
{[%clk 0:01:11.5]} 22... Qxg7 {[%clk 0:01:39.8]} 23. Nc4 {[%clk 0:01:06]} 23...
c6 {[%clk 0:01:12.6]} 24. Ne5 {[%clk 0:00:53]} 24... cxb5 {[%clk 0:01:12.2]} 25.
Qxb5 {[%clk 0:00:52]} 25... Nc3 {[%clk 0:01:12.2]} 26. Qxb6 {[%clk 0:00:50.6]}
26... Nxb1 {[%clk 0:01:12.3]} 27. Rxb1 {[%clk 0:00:35.8]} 27... Ba8 {[%clk
0:01:00.3]} 28. Qxa5 {[%clk 0:00:33.5]} 28... f4 {[%clk 0:01:00.5]} 29. Qc5
{[%clk 0:00:08.3]} 29... fxe3 {[%clk 0:00:44.8]} 30. fxe3 {[%clk 0:00:08.5]}
30... Rd5 {[%clk 0:00:43.7]} 31. Qb6 {[%clk 0:00:04.7]} 31... Rxe5 {[%clk
0:00:20]} 32. dxe5 {[%clk 0:00:04.5]} 32... Qxe5 {[%clk 0:00:20.7]} 33. Qa7
{[%clk 0:00:04.3]} 33... Qg7 {[%clk 0:00:16.9]} 34. Qb6 {[%clk 0:00:03.5]} 34...
Qf6 {[%clk 0:00:16.6]} 35. Qa7 {[%clk 0:00:03.6]} 35... Bd5 {[%clk 0:00:12.6]}
36. Kh1 {[%clk 0:00:03.7]} 36... Ra8 {[%clk 0:00:05.7]} 37. Qc5 {[%clk 0:00:02]}
37... Bg8 {[%clk 0:00:04.7]} 38. a5 {[%clk 0:00:01.8]} 38... Qf5 {[%clk
0:00:04.4]} 0-1

[Event "Late-Titled-Tuesday-Blitz-March-26-2024"]
[Site "Chess.com"]
[Date "2024.03.26"]
[Round "1"]
[White "Koalaskakistis"]
[Black "DanielDardha2005"]
[Result "0-1"]
[WhiteElo "2446"]
[BlackElo "2841"]
[TimeControl "180+1"]
[EndTime "14:07:48 PDT"]
[Termination "DanielDardha2005 won by resignation"]

1. Nf3 {[%clk 0:02:56.3]} 1... d5 {[%clk 0:02:51.9]} 2. g3 {[%clk 0:02:56.6]}
2... Nc6 {[%clk 0:02:48.9]} 3. d4 {[%clk 0:02:55.9]} 3... Bf5 {[%clk 0:02:48]}
4. Bg2 {[%clk 0:02:56.3]} 4... Nb4 {[%clk 0:02:45.5]} 5. Na3 {[%clk 0:02:56.7]}
5... e6 {[%clk 0:02:45.6]} 6. O-O {[%clk 0:02:56.7]} 6... Nc6 {[%clk 0:02:46.1]}
7. Nb1 {[%clk 0:02:56.9]} 7... Nb4 {[%clk 0:02:46.4]} 8. Na3 {[%clk 0:02:57.1]}
8... Nc6 {[%clk 0:02:46.5]} 9. Nb1 {[%clk 0:02:57.2]} 9... Be7 {[%clk
0:02:46.3]} 10. c4 {[%clk 0:02:54.4]} 10... Nf6 {[%clk 0:02:41.4]} 11. Nc3
{[%clk 0:02:49.5]} 11... O-O {[%clk 0:02:37.2]} 12. Nh4 {[%clk 0:02:47.9]} 12...
Bg4 {[%clk 0:02:35.9]} 13. h3 {[%clk 0:02:34.5]} 13... Bh5 {[%clk 0:02:35.4]}
14. g4 {[%clk 0:02:31.2]} 14... Bg6 {[%clk 0:02:31.8]} 15. Nxg6 {[%clk
0:02:15.5]} 15... hxg6 {[%clk 0:02:30.9]} 16. g5 {[%clk 0:02:12.7]} 16... Ne4
{[%clk 0:02:21.7]} 17. Nxe4 {[%clk 0:01:27.8]} 17... dxe4 {[%clk 0:02:21]} 18.
h4 {[%clk 0:01:26.8]} 18... Qxd4 {[%clk 0:02:15.4]} 19. Qxd4 {[%clk 0:01:19.2]}
19... Nxd4 {[%clk 0:02:16.3]} 20. Bxe4 {[%clk 0:01:19.5]} 20... Nxe2+ {[%clk
0:02:15.4]} 21. Kg2 {[%clk 0:01:19.3]} 21... Nxc1 {[%clk 0:02:12.7]} 22. Raxc1
{[%clk 0:01:17.6]} 22... c6 {[%clk 0:01:52.5]} 23. Rcd1 {[%clk 0:01:17]} 23...
Rad8 {[%clk 0:01:52.2]} 24. f4 {[%clk 0:01:10]} 24... Bc5 {[%clk 0:01:51.5]} 25.
Kf3 {[%clk 0:01:09.6]} 25... Bd4 {[%clk 0:01:46.5]} 26. Rd2 {[%clk 0:01:06.3]}
26... c5 {[%clk 0:01:35.1]} 27. Rfd1 {[%clk 0:00:57.7]} 27... b6 {[%clk
0:01:32.7]} 28. b4 {[%clk 0:00:56.3]} 28... a6 {[%clk 0:01:32.3]} 29. Bb7 {[%clk
0:00:52.6]} 29... a5 {[%clk 0:01:21.4]} 30. b5 {[%clk 0:00:52.4]} 30... f5
{[%clk 0:01:08]} 31. Rd3 {[%clk 0:00:32.5]} 31... Kf7 {[%clk 0:01:05.8]} 32. Kg2
{[%clk 0:00:30.2]} 32... Rh8 {[%clk 0:01:05.6]} 33. Kh3 {[%clk 0:00:19.5]} 33...
Rh7 {[%clk 0:00:53.9]} 34. Bf3 {[%clk 0:00:05.9]} 34... Rdh8 {[%clk 0:00:51.4]}
35. h5 {[%clk 0:00:06.2]} 35... gxh5 {[%clk 0:00:50.1]} 36. Rxd4 {[%clk
0:00:05.3]} 36... cxd4 {[%clk 0:00:50.2]} 37. Rxd4 {[%clk 0:00:06.2]} 37... Ke7
{[%clk 0:00:49.3]} 38. c5 {[%clk 0:00:04]} 38... bxc5 {[%clk 0:00:48.7]} 39. Ra4
{[%clk 0:00:04.2]} 39... Rb8 {[%clk 0:00:39.8]} 40. Rxa5 {[%clk 0:00:04.1]}
40... c4 {[%clk 0:00:40.5]} 41. a4 {[%clk 0:00:03.2]} 41... c3 {[%clk
0:00:38.1]} 42. Ra7+ {[%clk 0:00:03.3]} 42... Kd6 {[%clk 0:00:37.5]} 43. Ra6+
{[%clk 0:00:03.6]} 43... Kc5 {[%clk 0:00:37.5]} 44. Rc6+ {[%clk 0:00:01.6]}
44... Kb4 {[%clk 0:00:38.2]} 45. b6 {[%clk 0:00:02.2]} 45... g6 {[%clk 0:00:33]}
46. a5 {[%clk 0:00:01.5]} 46... Kxa5 {[%clk 0:00:32.5]} 47. Rxc3 {[%clk
0:00:01.6]} 47... Rxb6 {[%clk 0:00:31.6]} 48. Re3 {[%clk 0:00:02.2]} 48... Rc7
{[%clk 0:00:29.5]} 49. Kg2 {[%clk 0:00:01.6]} 49... Rc4 {[%clk 0:00:27.9]} 50.
Re5+ {[%clk 0:00:02]} 50... Kb4 {[%clk 0:00:27.2]} 51. Kg3 {[%clk 0:00:02.6]}
51... Rc3 {[%clk 0:00:27.2]} 52. Re2 {[%clk 0:00:02.9]} 52... Kc5 {[%clk
0:00:25.8]} 53. Re5+ {[%clk 0:00:02.8]} 53... Kd4 {[%clk 0:00:25.8]} 54. Re1
{[%clk 0:00:03.7]} 54... Rbb3 {[%clk 0:00:26.1]} 55. Rd1+ {[%clk 0:00:03.9]}
55... Rd3 {[%clk 0:00:26.4]} 56. Rf1 {[%clk 0:00:03.9]} 56... Rxf3+ {[%clk
0:00:26.6]} 57. Rxf3 {[%clk 0:00:04.8]} 57... Rxf3+ {[%clk 0:00:27.1]} 58. Kxf3
{[%clk 0:00:05.7]} 58... Kd3 {[%clk 0:00:28]} 0-1